[Event "*** Titled Tuesday Blitz"]
[Site "Chess.com"]
[Date "2020.11.24"]
[Round "11"]
[White "SlavenPastar"]
[Black "HrvojeZagreb"]
[Result "1-0"]
[WhiteElo "2507"]
[BlackElo "2293"]
[TimeControl "180+1"]
[EndTime "12:25:49 PST"]
[Termination "SlavenPastar won by resignation"]

1. b3 {[%clk 0:03:00.9]} 1... d6 {[%clk 0:02:53.6]} 2. Bb2 {[%clk 0:03:01.8]}
2... e5 {[%clk 0:02:53.6]} 3. Nf3 {[%clk 0:03:00.1]} 3... f5 {[%clk 0:02:53.6]}
4. d3 {[%clk 0:02:52.9]} 4... Nf6 {[%clk 0:02:53.2]} 5. e3 {[%clk 0:02:53.3]}
5... Be7 {[%clk 0:02:53.1]} 6. Nbd2 {[%clk 0:02:53.8]} 6... O-O {[%clk
0:02:53.1]} 7. g3 {[%clk 0:02:54.2]} 7... Nc6 {[%clk 0:02:52]} 8. Bg2 {[%clk
0:02:54.8]} 8... Qe8 {[%clk 0:02:52]} 9. Qe2 {[%clk 0:02:53.6]} 9... a5 {[%clk
0:02:49.5]} 10. c3 {[%clk 0:02:47.8]} 10... a4 {[%clk 0:02:49]} 11. b4 {[%clk
0:02:45.9]} 11... a3 {[%clk 0:02:45.6]} 12. Bc1 {[%clk 0:02:45.6]} 12... Qh5
{[%clk 0:02:39.8]} 13. Nb1 {[%clk 0:02:40.4]} 13... d5 {[%clk 0:02:30.1]} 14. b5
{[%clk 0:02:23]} 14... e4 {[%clk 0:02:12.7]} 15. bxc6 {[%clk 0:02:20.4]} 15...
exf3 {[%clk 0:02:12.7]} 16. Bxf3 {[%clk 0:02:17.3]} 16... Qh3 {[%clk 0:02:10]}
17. cxb7 {[%clk 0:02:11.7]} 17... Bxb7 {[%clk 0:02:08.3]} 18. Nd2 {[%clk
0:01:54.9]} 18... Ng4 {[%clk 0:02:00.9]} 19. Nf1 {[%clk 0:01:39.6]} 19... Ne5
{[%clk 0:01:54.5]} 20. d4 {[%clk 0:01:25.4]} 20... Nxf3+ {[%clk 0:01:45.8]} 21.
Qxf3 {[%clk 0:01:26.3]} 21... c6 {[%clk 0:01:37.9]} 22. Nd2 {[%clk 0:01:10.1]}
22... Ba6 {[%clk 0:01:36.1]} 23. Rg1 {[%clk 0:01:03.9]} 23... Bd3 {[%clk
0:01:27.6]} 24. Qg2 {[%clk 0:01:00.4]} 24... Qh5 {[%clk 0:01:24.5]} 25. f3
{[%clk 0:00:57.7]} 25... Rfe8 {[%clk 0:01:15.8]} 26. Nb3 {[%clk 0:00:55.4]}
26... c5 {[%clk 0:00:48]} 27. Bd2 {[%clk 0:00:48]} 27... c4 {[%clk 0:00:42.5]}
28. Nc1 {[%clk 0:00:46.7]} 28... Rab8 {[%clk 0:00:37.8]} 29. Nxd3 {[%clk
0:00:40.2]} 29... cxd3 {[%clk 0:00:38.7]} 30. Bc1 {[%clk 0:00:33.2]} 30... Rb5
{[%clk 0:00:22.1]} 31. Kf2 {[%clk 0:00:16.7]} 31... Reb8 {[%clk 0:00:17.6]} 32.
Rd1 {[%clk 0:00:14.7]} 32... Rb2+ {[%clk 0:00:08.9]} 33. Rd2 {[%clk 0:00:13.3]}
33... Rc2 {[%clk 0:00:08.9]} 34. Ke1 {[%clk 0:00:08.2]} 34... Rbb2 {[%clk
0:00:07.5]} 35. Bxb2 {[%clk 0:00:05.3]} 35... axb2 {[%clk 0:00:07.6]} 36. Rb1
{[%clk 0:00:05.8]} 36... Rc1+ {[%clk 0:00:07.8]} 37. Rd1 {[%clk 0:00:05.7]}
37... Ba3 {[%clk 0:00:07]} 38. Rxb2 {[%clk 0:00:03.2]} 38... Bxb2 {[%clk
0:00:04.4]} 39. Qxb2 {[%clk 0:00:01.9]} 39... Rxd1+ {[%clk 0:00:04.3]} 40. Kxd1
{[%clk 0:00:02.8]} 40... Qxf3+ {[%clk 0:00:04.3]} 41. Ke1 {[%clk 0:00:03.4]}
41... Qxe3+ {[%clk 0:00:04.3]} 42. Kf1 {[%clk 0:00:03.4]} 42... h6 {[%clk
0:00:03.1]} 43. Qf2 {[%clk 0:00:02.4]} 43... Qc1+ {[%clk 0:00:02.6]} 44. Qe1
{[%clk 0:00:02.3]} 44... Qxc3 {[%clk 0:00:03.4]} 45. Qe8+ {[%clk 0:00:02]} 45...
Kh7 {[%clk 0:00:03.1]} 46. Qe5 {[%clk 0:00:02.9]} 46... Qc1+ {[%clk 0:00:02]}
47. Kf2 {[%clk 0:00:03.3]} 47... Qg5 {[%clk 0:00:02.7]} 48. Ke1 {[%clk
0:00:02.6]} 48... d2+ {[%clk 0:00:02.9]} 49. Kd1 {[%clk 0:00:02.8]} 49... f4
{[%clk 0:00:03.8]} 50. Qxg5 {[%clk 0:00:02.6]} 50... hxg5 {[%clk 0:00:04.5]} 51.
Kxd2 {[%clk 0:00:03.2]} 51... fxg3 {[%clk 0:00:04.9]} 52. hxg3 {[%clk
0:00:04.1]} 52... Kg6 {[%clk 0:00:05.4]} 53. Ke2 {[%clk 0:00:04.8]} 53... Kf5
{[%clk 0:00:06.3]} 54. Kf3 {[%clk 0:00:05.7]} 54... g4+ {[%clk 0:00:06.4]} 55.
Ke3 {[%clk 0:00:06.3]} 55... Ke6 {[%clk 0:00:06.8]} 56. a3 {[%clk 0:00:06.9]}
56... g5 {[%clk 0:00:07.6]} 57. Kd3 {[%clk 0:00:07.2]} 57... Kd6 {[%clk
0:00:08.4]} 58. Kc3 {[%clk 0:00:07.9]} 58... Kc6 {[%clk 0:00:09.3]} 59. Kb4
{[%clk 0:00:08.4]} 59... Kb6 {[%clk 0:00:10.2]} 60. a4 {[%clk 0:00:08.8]} 60...
Ka6 {[%clk 0:00:10.6]} 61. Kc5 {[%clk 0:00:09]} 61... Ka5 {[%clk 0:00:11.1]} 62.
Kxd5 {[%clk 0:00:09.9]} 62... Kxa4 {[%clk 0:00:12]} 63. Ke5 {[%clk 0:00:10.8]}
63... Kb5 {[%clk 0:00:12.9]} 64. Kf5 {[%clk 0:00:11.7]} 64... Kc6 {[%clk
0:00:13.8]} 65. Kxg4 {[%clk 0:00:12]} 65... Kd5 {[%clk 0:00:14.7]} 66. Kxg5
{[%clk 0:00:12.9]} 66... Kxd4 {[%clk 0:00:15.5]} 67. Kf6 {[%clk 0:00:13.4]}
67... Ke4 {[%clk 0:00:15.5]} 68. g4 {[%clk 0:00:13.6]} 1-0

[Event "*** Titled Tuesday Blitz"]
[Site "Chess.com"]
[Date "2020.11.24"]
[Round "11"]
[White "theblitzchamp"]
[Black "yourstrulyme"]
[Result "0-1"]
[WhiteElo "2590"]
[BlackElo "2503"]
[TimeControl "180+1"]
[EndTime "12:25:51 PST"]
[Termination "yourstrulyme won by checkmate"]

1. d4 {[%clk 0:03:00.9]} 1... Nf6 {[%clk 0:02:59.4]} 2. Bf4 {[%clk 0:03:00.1]}
2... e6 {[%clk 0:02:59.5]} 3. e3 {[%clk 0:02:59.9]} 3... d5 {[%clk 0:02:59.1]}
4. Nf3 {[%clk 0:02:57.9]} 4... Bd6 {[%clk 0:02:59.3]} 5. Nbd2 {[%clk 0:02:58.5]}
5... Bxf4 {[%clk 0:02:52.9]} 6. exf4 {[%clk 0:02:58.5]} 6... O-O {[%clk
0:02:53.4]} 7. c3 {[%clk 0:02:57.4]} 7... c5 {[%clk 0:02:51.7]} 8. Bd3 {[%clk
0:02:57.6]} 8... cxd4 {[%clk 0:02:49.1]} 9. Nxd4 {[%clk 0:02:58.5]} 9... Nc6
{[%clk 0:02:43.7]} 10. N2f3 {[%clk 0:02:58.1]} 10... Bd7 {[%clk 0:02:36.6]} 11.
O-O {[%clk 0:02:57.8]} 11... Rc8 {[%clk 0:02:36.1]} 12. Re1 {[%clk 0:02:57.3]}
12... Na5 {[%clk 0:02:25.5]} 13. Ne5 {[%clk 0:02:56.7]} 13... Nc6 {[%clk
0:02:10.9]} 14. Re3 {[%clk 0:02:53]} 14... Nxd4 {[%clk 0:02:09.5]} 15. cxd4
{[%clk 0:02:53.9]} 15... Qb6 {[%clk 0:02:06.1]} 16. b3 {[%clk 0:01:51.5]} 16...
Bb5 {[%clk 0:02:04.1]} 17. Rh3 {[%clk 0:01:42.7]} 17... Bxd3 {[%clk 0:01:59.4]}
18. Qxd3 {[%clk 0:01:43.6]} 18... Qc7 {[%clk 0:01:48.4]} 19. Re1 {[%clk
0:01:38.1]} 19... Qc2 {[%clk 0:01:44.7]} 20. a4 {[%clk 0:01:27.1]} 20... Qxd3
{[%clk 0:01:43.7]} 21. Rxd3 {[%clk 0:01:25.5]} 21... Rc2 {[%clk 0:01:43.3]} 22.
g4 {[%clk 0:01:19.7]} 22... Rfc8 {[%clk 0:01:42.5]} 23. f3 {[%clk 0:01:09.8]}
23... Ne8 {[%clk 0:01:33.9]} 24. Rde3 {[%clk 0:01:06.8]} 24... Nd6 {[%clk
0:01:33.4]} 25. R1e2 {[%clk 0:01:05.2]} 25... g6 {[%clk 0:01:22.9]} 26. Kf2
{[%clk 0:01:01.4]} 26... Rxe2+ {[%clk 0:01:18.7]} 27. Rxe2 {[%clk 0:01:00.9]}
27... Rc3 {[%clk 0:01:19]} 28. Re3 {[%clk 0:01:01.3]} 28... Rc2+ {[%clk
0:01:19]} 29. Re2 {[%clk 0:01:01.9]} 29... Rc3 {[%clk 0:01:18.1]} 30. Re3 {[%clk
0:01:02.4]} 30... Rc1 {[%clk 0:01:17.8]} 31. Nd7 {[%clk 0:00:51.4]} 31... Rd1
{[%clk 0:01:12.9]} 32. Rc3 {[%clk 0:00:37.3]} 32... Rxd4 {[%clk 0:01:12.6]} 33.
Kg3 {[%clk 0:00:36.8]} 33... Kg7 {[%clk 0:01:02.2]} 34. Rc7 {[%clk 0:00:34.6]}
34... Rd3 {[%clk 0:00:56.4]} 35. Nc5 {[%clk 0:00:34.7]} 35... Ne4+ {[%clk
0:00:50.4]} 36. Nxe4 {[%clk 0:00:30.9]} 36... dxe4 {[%clk 0:00:51.3]} 37. Rxb7
{[%clk 0:00:31.3]} 37... Rxf3+ {[%clk 0:00:51.1]} 38. Kg2 {[%clk 0:00:31.7]}
38... a5 {[%clk 0:00:50]} 39. b4 {[%clk 0:00:25]} 39... Rxf4 {[%clk 0:00:32]}
40. bxa5 {[%clk 0:00:20.2]} 40... e3 {[%clk 0:00:27.4]} 41. Rb3 {[%clk 0:00:15]}
41... Rxg4+ {[%clk 0:00:19.8]} 42. Kf3 {[%clk 0:00:14.1]} 42... Rxa4 {[%clk
0:00:18.9]} 43. Rb5 {[%clk 0:00:14.7]} 43... Ra3 {[%clk 0:00:18.7]} 44. h4
{[%clk 0:00:15.2]} 44... h5 {[%clk 0:00:18.3]} 45. Rc5 {[%clk 0:00:15.3]} 45...
f5 {[%clk 0:00:17.7]} 46. Rb5 {[%clk 0:00:15.1]} 46... Kf6 {[%clk 0:00:18]} 47.
Rc5 {[%clk 0:00:15.6]} 47... e5 {[%clk 0:00:17.7]} 48. Rc6+ {[%clk 0:00:15.5]}
48... Kg7 {[%clk 0:00:17.9]} 49. a6 {[%clk 0:00:16.4]} 49... e4+ {[%clk
0:00:17.3]} 50. Kf4 {[%clk 0:00:12.9]} 50... e2 {[%clk 0:00:16.5]} 51. Rc1
{[%clk 0:00:13.4]} 51... Rxa6 {[%clk 0:00:16.1]} 52. Kg5 {[%clk 0:00:13.2]}
52... Ra7 {[%clk 0:00:16.1]} 53. Re1 {[%clk 0:00:12.7]} 53... Ra2 {[%clk
0:00:16.2]} 54. Rb1 {[%clk 0:00:12.9]} 54... Kf7 {[%clk 0:00:15.3]} 55. Rb7+
{[%clk 0:00:12.7]} 55... Ke6 {[%clk 0:00:15.1]} 56. Rb1 {[%clk 0:00:13.6]} 56...
Rd2 {[%clk 0:00:14.5]} 57. Re1 {[%clk 0:00:13.2]} 57... Ke5 {[%clk 0:00:14.5]}
58. Kxg6 {[%clk 0:00:13.7]} 58... f4 {[%clk 0:00:14.7]} 59. Kxh5 {[%clk
0:00:14.3]} 59... f3 {[%clk 0:00:15.1]} 60. Ra1 {[%clk 0:00:14.2]} 60... f2
{[%clk 0:00:15]} 61. Ra5+ {[%clk 0:00:15.1]} 61... Kf4 {[%clk 0:00:15.3]} 62.
Ra8 {[%clk 0:00:15.3]} 62... e1=Q {[%clk 0:00:14.8]} 63. Rf8+ {[%clk 0:00:16.2]}
63... Ke3 {[%clk 0:00:15]} 64. Kg6 {[%clk 0:00:17.1]} 64... f1=Q {[%clk
0:00:13.9]} 65. h5 {[%clk 0:00:18]} 65... Qxf8 {[%clk 0:00:13.2]} 66. h6 {[%clk
0:00:17.8]} 66... Qg3+ {[%clk 0:00:13.8]} 67. Kh7 {[%clk 0:00:18.7]} 67... Rd7#
{[%clk 0:00:13.2]} 0-1

[Event "*** Titled Tuesday Blitz"]
[Site "Chess.com"]
[Date "2020.11.24"]
[Round "11"]
[White "ViktoriyaTarasova"]
[Black "margarita_2703"]
[Result "1/2-1/2"]
[WhiteElo "2302"]
[BlackElo "2409"]
[TimeControl "180+1"]
[EndTime "12:26:05 PST"]
[Termination "Game drawn by repetition"]

1. d4 {[%clk 0:03:00.9]} 1... d5 {[%clk 0:02:55.2]} 2. c4 {[%clk 0:03:01]} 2...
c6 {[%clk 0:02:54.6]} 3. Nf3 {[%clk 0:03:00.7]} 3... Nf6 {[%clk 0:02:54.1]} 4.
Nc3 {[%clk 0:03:01.1]} 4... e6 {[%clk 0:02:52.6]} 5. Bg5 {[%clk 0:03:00.1]} 5...
h6 {[%clk 0:02:51.3]} 6. Bxf6 {[%clk 0:03:00.4]} 6... Qxf6 {[%clk 0:02:49.7]} 7.
e3 {[%clk 0:03:00.9]} 7... g6 {[%clk 0:02:46.4]} 8. Bd3 {[%clk 0:03:00.5]} 8...
Bg7 {[%clk 0:02:46.3]} 9. O-O {[%clk 0:03:00.8]} 9... O-O {[%clk 0:02:45.2]} 10.
e4 {[%clk 0:03:01.4]} 10... dxe4 {[%clk 0:02:40.5]} 11. Nxe4 {[%clk 0:03:00.6]}
11... Qe7 {[%clk 0:02:40.1]} 12. c5 {[%clk 0:02:58.6]} 12... Nd7 {[%clk
0:02:36.3]} 13. Nd6 {[%clk 0:02:53.3]} 13... Nf6 {[%clk 0:02:32.8]} 14. Ne5
{[%clk 0:02:48.8]} 14... Ne8 {[%clk 0:02:26.6]} 15. Ndc4 {[%clk 0:02:38.5]}
15... Bd7 {[%clk 0:02:22.4]} 16. Qb3 {[%clk 0:02:34.3]} 16... Rb8 {[%clk
0:02:19.6]} 17. Rfe1 {[%clk 0:02:27]} 17... b5 {[%clk 0:02:15.7]} 18. Na5 {[%clk
0:02:18.4]} 18... Bxe5 {[%clk 0:02:06.1]} 19. Rxe5 {[%clk 0:02:15.8]} 19... Nc7
{[%clk 0:02:04.1]} 20. Qc2 {[%clk 0:02:06.4]} 20... Rfd8 {[%clk 0:01:52.9]} 21.
Nb3 {[%clk 0:01:57.7]} 21... Nd5 {[%clk 0:01:49.4]} 22. a3 {[%clk 0:01:56.3]}
22... b4 {[%clk 0:01:37]} 23. a4 {[%clk 0:01:55.8]} 23... Kg7 {[%clk 0:01:31.1]}
24. Rae1 {[%clk 0:01:54.7]} 24... Bc8 {[%clk 0:01:24.9]} 25. Bc4 {[%clk
0:01:51.1]} 25... Qf6 {[%clk 0:01:17.2]} 26. Bxd5 {[%clk 0:01:46.7]} 26... exd5
{[%clk 0:01:14.6]} 27. Qd2 {[%clk 0:01:37.8]} 27... Be6 {[%clk 0:01:11.3]} 28.
R1e3 {[%clk 0:01:30.1]} 28... Re8 {[%clk 0:01:05.9]} 29. h3 {[%clk 0:01:26.3]}
29... Qd8 {[%clk 0:00:59.6]} 30. Nc1 {[%clk 0:01:18.6]} 30... Qf6 {[%clk
0:00:59.2]} 31. b3 {[%clk 0:01:17.4]} 31... a5 {[%clk 0:00:55.3]} 32. Nd3 {[%clk
0:01:17.5]} 32... Bd7 {[%clk 0:00:51.1]} 33. Qe1 {[%clk 0:01:14.9]} 33... Be6
{[%clk 0:00:48.4]} 34. Kh2 {[%clk 0:01:12.6]} 34... Rb7 {[%clk 0:00:42.5]} 35.
f4 {[%clk 0:01:12.3]} 35... Rbe7 {[%clk 0:00:38.6]} 36. g4 {[%clk 0:01:09.9]}
36... Kg8 {[%clk 0:00:30.2]} 37. f5 {[%clk 0:00:58.4]} 37... gxf5 {[%clk
0:00:27.4]} 38. gxf5 {[%clk 0:00:58.4]} 38... Bxf5 {[%clk 0:00:24.7]} 39. Rxe7
{[%clk 0:00:53.7]} 39... Rxe7 {[%clk 0:00:24.7]} 40. Rxe7 {[%clk 0:00:52.4]}
40... Bxd3 {[%clk 0:00:24.3]} 41. Qg3+ {[%clk 0:00:40.2]} 41... Kf8 {[%clk
0:00:21]} 42. Re3 {[%clk 0:00:26.4]} 42... Be4 {[%clk 0:00:18.4]} 43. Qb8+
{[%clk 0:00:23.9]} 43... Kg7 {[%clk 0:00:17.8]} 44. Rg3+ {[%clk 0:00:20.8]}
44... Bg6 {[%clk 0:00:16.4]} 45. Qe5 {[%clk 0:00:17.5]} 45... Qxe5 {[%clk
0:00:14.1]} 46. dxe5 {[%clk 0:00:18.2]} 46... Kf8 {[%clk 0:00:14.7]} 47. Kg2
{[%clk 0:00:16.6]} 47... Ke7 {[%clk 0:00:14.8]} 48. Kf3 {[%clk 0:00:16.7]} 48...
Ke6 {[%clk 0:00:14.3]} 49. Kf4 {[%clk 0:00:17.2]} 49... Bc2 {[%clk 0:00:13.2]}
50. Rg8 {[%clk 0:00:15.3]} 50... Bxb3 {[%clk 0:00:12.8]} 51. Re8+ {[%clk
0:00:13.6]} 51... Kd7 {[%clk 0:00:12.7]} 52. Rf8 {[%clk 0:00:12.8]} 52... Ke7
{[%clk 0:00:12.7]} 53. Ra8 {[%clk 0:00:11.8]} 53... Bxa4 {[%clk 0:00:12.2]} 54.
Rxa5 {[%clk 0:00:12.5]} 54... Bb5 {[%clk 0:00:12.3]} 55. Ra7+ {[%clk 0:00:12.6]}
55... Ke8 {[%clk 0:00:11.6]} 56. Kf5 {[%clk 0:00:07.4]} 56... b3 {[%clk
0:00:11.7]} 57. Ra1 {[%clk 0:00:05.3]} 57... Bc4 {[%clk 0:00:11.1]} 58. Kf6
{[%clk 0:00:04.7]} 58... d4 {[%clk 0:00:11.3]} 59. Rd1 {[%clk 0:00:04.2]} 59...
d3 {[%clk 0:00:10.9]} 60. Rd2 {[%clk 0:00:04]} 60... h5 {[%clk 0:00:06.8]} 61.
h4 {[%clk 0:00:04.2]} 61... Kd7 {[%clk 0:00:06]} 62. Rb2 {[%clk 0:00:04.6]}
62... Ke8 {[%clk 0:00:05.5]} 63. Rd2 {[%clk 0:00:04.9]} 63... Kd7 {[%clk
0:00:05.8]} 64. Rb2 {[%clk 0:00:05.4]} 64... Ke8 {[%clk 0:00:06]} 65. Rd2 {[%clk
0:00:05.9]} 1/2-1/2

[Event "*** Titled Tuesday Blitz"]
[Site "Chess.com"]
[Date "2020.11.24"]
[Round "11"]
[White "IgorBjelobrk"]
[Black "WildTricks"]
[Result "1/2-1/2"]
[WhiteElo "2663"]
[BlackElo "2453"]
[TimeControl "180+1"]
[EndTime "12:26:14 PST"]
[Termination "Game drawn by repetition"]

1. c4 {[%clk 0:03:00.9]} 1... g6 {[%clk 0:02:58.4]} 2. g3 {[%clk 0:02:58.5]}
2... Bg7 {[%clk 0:02:58]} 3. Bg2 {[%clk 0:02:57.5]} 3... c5 {[%clk 0:02:58.1]}
4. Nc3 {[%clk 0:02:56.4]} 4... Nc6 {[%clk 0:02:57.5]} 5. Nf3 {[%clk 0:02:55.7]}
5... e6 {[%clk 0:02:56.8]} 6. h4 {[%clk 0:02:53.2]} 6... h6 {[%clk 0:02:52.8]}
7. d4 {[%clk 0:02:37.5]} 7... cxd4 {[%clk 0:02:33.9]} 8. Nb5 {[%clk 0:02:34.9]}
8... e5 {[%clk 0:02:33.8]} 9. O-O {[%clk 0:02:04.1]} 9... d6 {[%clk 0:02:17.5]}
10. e3 {[%clk 0:01:38.9]} 10... a6 {[%clk 0:02:16.1]} 11. Na3 {[%clk 0:01:38.8]}
11... dxe3 {[%clk 0:01:56.6]} 12. Bxe3 {[%clk 0:01:37.7]} 12... Nge7 {[%clk
0:01:56]} 13. Qd2 {[%clk 0:01:32]} 13... Nf5 {[%clk 0:01:54.1]} 14. Rad1 {[%clk
0:01:26.7]} 14... O-O {[%clk 0:01:53.2]} 15. Nc2 {[%clk 0:01:17.4]} 15... Be6
{[%clk 0:01:37.2]} 16. b3 {[%clk 0:01:16.1]} 16... Qc7 {[%clk 0:01:24.5]} 17.
Nh2 {[%clk 0:01:13.8]} 17... Rfd8 {[%clk 0:01:10.9]} 18. Ng4 {[%clk 0:01:10.7]}
18... Kh7 {[%clk 0:01:01.2]} 19. Nh2 {[%clk 0:00:48.4]} 19... Rac8 {[%clk
0:00:54.8]} 20. Be4 {[%clk 0:00:46.9]} 20... Rd7 {[%clk 0:00:50.9]} 21. h5
{[%clk 0:00:42.4]} 21... b5 {[%clk 0:00:42.1]} 22. hxg6+ {[%clk 0:00:39.7]}
22... fxg6 {[%clk 0:00:41.3]} 23. g4 {[%clk 0:00:39.5]} 23... Nh4 {[%clk
0:00:24.4]} 24. Qd3 {[%clk 0:00:39.3]} 24... bxc4 {[%clk 0:00:21.8]} 25. bxc4
{[%clk 0:00:39.4]} 25... Na5 {[%clk 0:00:18.1]} 26. Na3 {[%clk 0:00:15.6]} 26...
Bxc4 {[%clk 0:00:07.8]} 27. Nxc4 {[%clk 0:00:14.4]} 27... Qxc4 {[%clk
0:00:08.7]} 28. Qb1 {[%clk 0:00:13.1]} 28... Qb5 {[%clk 0:00:07.4]} 29. Qa1
{[%clk 0:00:10.1]} 29... Nc4 {[%clk 0:00:06.9]} 30. Rb1 {[%clk 0:00:08.9]} 30...
Qa4 {[%clk 0:00:05.8]} 31. Rfc1 {[%clk 0:00:08.8]} 31... Rdc7 {[%clk 0:00:04.8]}
32. Bc2 {[%clk 0:00:07.9]} 32... Qa3 {[%clk 0:00:04.7]} 33. Bb3 {[%clk
0:00:07.6]} 33... Nxe3 {[%clk 0:00:04.6]} 34. Rxc7 {[%clk 0:00:07.6]} 34... Rxc7
{[%clk 0:00:05.5]} 35. fxe3 {[%clk 0:00:08]} 35... Qc5 {[%clk 0:00:05.3]} 36.
Re1 {[%clk 0:00:07.6]} 36... Qc3 {[%clk 0:00:05.6]} 37. Qd1 {[%clk 0:00:07.5]}
37... g5 {[%clk 0:00:04.9]} 38. Nf1 {[%clk 0:00:07.4]} 38... Qxe1 {[%clk
0:00:03.4]} 39. Qxe1 {[%clk 0:00:07.1]} 39... Nf3+ {[%clk 0:00:03.7]} 40. Kf2
{[%clk 0:00:08]} 40... Nxe1 {[%clk 0:00:04.6]} 41. Kxe1 {[%clk 0:00:08.8]} 41...
Kg6 {[%clk 0:00:05.5]} 42. Ke2 {[%clk 0:00:09.1]} 42... Kf6 {[%clk 0:00:06.4]}
43. Ng3 {[%clk 0:00:09.5]} 43... Rc5 {[%clk 0:00:06.7]} 44. Ne4+ {[%clk
0:00:09.5]} 44... Ke7 {[%clk 0:00:06.8]} 45. Nxc5 {[%clk 0:00:10.4]} 45... dxc5
{[%clk 0:00:07.7]} 46. Kd3 {[%clk 0:00:10.7]} 46... Kd6 {[%clk 0:00:08.1]} 47.
Ke4 {[%clk 0:00:11]} 47... a5 {[%clk 0:00:08.5]} 48. Bc4 {[%clk 0:00:11.4]}
48... Kc6 {[%clk 0:00:08.5]} 49. a4 {[%clk 0:00:11.6]} 49... Kb6 {[%clk
0:00:08.4]} 50. Bb5 {[%clk 0:00:11.9]} 50... Kc7 {[%clk 0:00:08]} 51. Kd5 {[%clk
0:00:12.3]} 51... Kb6 {[%clk 0:00:08.6]} 52. Kc4 {[%clk 0:00:12.4]} 52... Bf8
{[%clk 0:00:08.4]} 53. Kd5 {[%clk 0:00:12.9]} 53... Bg7 {[%clk 0:00:08.9]} 54.
e4 {[%clk 0:00:13.2]} 54... Bh8 {[%clk 0:00:08.4]} 55. Bc4 {[%clk 0:00:13.6]}
55... Bg7 {[%clk 0:00:07.9]} 56. Ke6 {[%clk 0:00:14.5]} 56... Kc6 {[%clk
0:00:07.5]} 57. Kf7 {[%clk 0:00:14.5]} 57... Bh8 {[%clk 0:00:07.7]} 58. Kg6
{[%clk 0:00:14.7]} 58... Kd6 {[%clk 0:00:07.6]} 59. Kxh6 {[%clk 0:00:15]} 59...
Bf6 {[%clk 0:00:08]} 60. Kg6 {[%clk 0:00:15.2]} 60... Bd8 {[%clk 0:00:08.4]} 61.
Kf7 {[%clk 0:00:15.4]} 61... Bb6 {[%clk 0:00:08.2]} 62. Kf6 {[%clk 0:00:14.8]}
62... Bd8+ {[%clk 0:00:08.3]} 63. Kf7 {[%clk 0:00:15.4]} 63... Be7 {[%clk
0:00:07.8]} 64. Ke8 {[%clk 0:00:15.6]} 64... Bf6 {[%clk 0:00:07.3]} 65. Kf7
{[%clk 0:00:15.3]} 65... Be7 {[%clk 0:00:07.7]} 66. Ke8 {[%clk 0:00:15.2]} 66...
Bf6 {[%clk 0:00:07.8]} 67. Kf8 {[%clk 0:00:15.5]} 67... Bd8 {[%clk 0:00:06.8]}
68. Kg7 {[%clk 0:00:16.4]} 68... Ke7 {[%clk 0:00:05.9]} 69. Kg6 {[%clk 0:00:16]}
69... Kd6 {[%clk 0:00:06]} 70. Kf5 {[%clk 0:00:15.9]} 70... Be7 {[%clk
0:00:05.4]} 71. Bd5 {[%clk 0:00:15.1]} 71... Bd8 {[%clk 0:00:05]} 72. Kg6 {[%clk
0:00:14.4]} 72... Be7 {[%clk 0:00:05.1]} 73. Kh6 {[%clk 0:00:13.2]} 73... Bd8
{[%clk 0:00:04.8]} 74. Kg7 {[%clk 0:00:14.1]} 74... Be7 {[%clk 0:00:03.3]} 75.
Bc4 {[%clk 0:00:14.5]} 75... Bd8 {[%clk 0:00:03.6]} 76. Kf7 {[%clk 0:00:15.2]}
1/2-1/2